[Event "Titled Tuesday Blitz June 20 Early 2023"]
[White "Gomez Barrera, Javiera Belen"]
[Black "Mendez Fortes, Eduardo Jesus"]
[WhiteFideId "3418723"]
[BlackFideId "3502376"]
[WhiteElo "2119"]
[BlackElo "2307"]
[Result "1-0"]
[Round "11"]
[TimeControl "180+2"]
[Date "2023.06.20"]
[WhiteClock "0:00:23"]
[BlackClock "0:00:15"]
[Board "81"]

1. e4 {[%clk 0:03:00]}  c5 {[%clk 0:02:59]} 2. Nf3 {[%clk 0:03:01]}  d6 {[%clk 0:02:59]} 3. d4 {[%clk 0:03:01]}  cxd4 {[%clk 0:03:00]} 4. Nxd4 {[%clk 0:03:02]}  Nf6 {[%clk 0:03:00]} 5. Nc3 {[%clk 0:03:03]}  a6 {[%clk 0:03:01]} 6. Be3 {[%clk 0:03:03]}  e5 {[%clk 0:03:00]} 7. Nb3 {[%clk 0:03:04]}  Be6 {[%clk 0:03:01]} 8. f3 {[%clk 0:03:02]}  Be7 {[%clk 0:03:01]} 9. g4 {[%clk 0:03:01]}  O-O {[%clk 0:02:58]} 10. Qd2 {[%clk 0:03:01]}  Nbd7 {[%clk 0:02:55]} 11. g5 {[%clk 0:03:00]}  Nh5 {[%clk 0:02:54]} 12. O-O-O {[%clk 0:03:00]}  b5 {[%clk 0:02:53]} 13. h4 {[%clk 0:02:55]}  Ng3 {[%clk 0:02:51]} 14. Rg1 {[%clk 0:02:54]}  Nxf1 {[%clk 0:02:49]} 15. Rgxf1 {[%clk 0:02:53]}  Nb6 {[%clk 0:02:49]} 16. Bxb6 {[%clk 0:02:48]}  Qxb6 {[%clk 0:02:50]} 17. Nd5 {[%clk 0:02:49]}  Bxd5 {[%clk 0:02:49]} 18. Qxd5 {[%clk 0:02:50]}  a5 {[%clk 0:02:47]} 19. Kb1 {[%clk 0:02:45]}  b4 {[%clk 0:02:39]} 20. Nc1 {[%clk 0:02:27]}  Rfc8 {[%clk 0:02:36]} 21. Rd2 {[%clk 0:02:16]}  Rc5 {[%clk 0:02:28]} 22. Qd3 {[%clk 0:02:16]}  a4 {[%clk 0:02:28]} 23. Qe2 {[%clk 0:02:00]}  g6 {[%clk 0:02:25]} 24. Rfd1 {[%clk 0:02:00]}  Bf8 {[%clk 0:02:25]} 25. Rd5 {[%clk 0:01:58]}  Rac8 {[%clk 0:02:05]} 26. Rxc5 {[%clk 0:01:58]}  Qxc5 {[%clk 0:02:01]} 27. Nd3 {[%clk 0:01:55]}  Qb6 {[%clk 0:01:58]} 28. Nf2 {[%clk 0:01:49]}  b3 {[%clk 0:01:53]} 29. cxb3 {[%clk 0:01:48]}  axb3 {[%clk 0:01:54]} 30. a3 {[%clk 0:01:48]}  d5 {[%clk 0:01:47]} 31. exd5 {[%clk 0:01:47]}  Qc7 {[%clk 0:01:45]} 32. Re1 {[%clk 0:01:25]}  Bc5 {[%clk 0:01:29]} 33. Rc1 {[%clk 0:01:10]}  Qd8 {[%clk 0:01:17]} 34. Qc4 {[%clk 0:01:06]}  Rc7 {[%clk 0:01:15]} 35. Ne4 {[%clk 0:00:59]}  Bb6 {[%clk 0:01:12]} 36. Qxb3 {[%clk 0:00:52]}  Rxc1+ {[%clk 0:01:06]} 37. Kxc1 {[%clk 0:00:53]}  Bd4 {[%clk 0:01:01]} 38. Kb1 {[%clk 0:00:49]}  Kg7 {[%clk 0:01:00]} 39. Qb7 {[%clk 0:00:33]}  h6 {[%clk 0:00:45]} 40. Ka2 {[%clk 0:00:32]}  hxg5 {[%clk 0:00:44]} 41. hxg5 {[%clk 0:00:33]}  Qa5 {[%clk 0:00:24]} 42. Qc6 {[%clk 0:00:26]}  Qe1 {[%clk 0:00:21]} 43. Qf6+ {[%clk 0:00:25]}  Kg8 {[%clk 0:00:20]} 44. Nd6 {[%clk 0:00:21]}  Qd2 {[%clk 0:00:14]} 45. Qxf7+ {[%clk 0:00:21]}  Kh8 {[%clk 0:00:14]} 46. Qf8+ {[%clk 0:00:22]}  Kh7 {[%clk 0:00:14]} 47. Qh6+ {[%clk 0:00:22]}  Kg8 {[%clk 0:00:14]} 48. Qxg6+ {[%clk 0:00:22]}  Kf8 {[%clk 0:00:15]} 49. Qf7# {[%clk 0:00:23]} 1-0


[Site "https://www.chess.com"]

[Event "Titled Tuesday Blitz June 20 Early 2023"]
[White "Itkis, Boris"]
[Black "Pastar, Slaven"]
[WhiteFideId "1209167"]
[BlackFideId "14402718"]
[WhiteElo "2219"]
[BlackElo "2219"]
[Result "1/2-1/2"]
[Round "11"]
[TimeControl "180+2"]
[Date "2023.06.20"]
[WhiteClock "0:00:08"]
[BlackClock "0:00:07"]
[Board "82"]

1. c4 {[%clk 0:03:00]}  b6 {[%clk 0:03:00]} 2. Nf3 {[%clk 0:03:01]}  Bb7 {[%clk 0:03:00]} 3. g3 {[%clk 0:03:00]}  Nf6 {[%clk 0:03:01]} 4. Bg2 {[%clk 0:03:01]}  g6 {[%clk 0:03:02]} 5. O-O {[%clk 0:03:01]}  Bg7 {[%clk 0:03:02]} 6. b3 {[%clk 0:03:01]}  Ne4 {[%clk 0:03:01]} 7. d4 {[%clk 0:03:02]}  c5 {[%clk 0:03:00]} 8. Bb2 {[%clk 0:03:01]}  Nc6 {[%clk 0:02:57]} 9. e3 {[%clk 0:02:56]}  O-O {[%clk 0:02:55]} 10. Nbd2 {[%clk 0:02:52]}  Nxd2 {[%clk 0:02:52]} 11. Qxd2 {[%clk 0:02:53]}  cxd4 {[%clk 0:02:52]} 12. Nxd4 {[%clk 0:02:49]}  Rc8 {[%clk 0:02:40]} 13. Rfd1 {[%clk 0:02:43]}  d6 {[%clk 0:02:38]} 14. a4 {[%clk 0:02:37]}  a6 {[%clk 0:02:37]} 15. a5 {[%clk 0:02:27]}  Nxa5 {[%clk 0:02:19]} 16. Bxb7 {[%clk 0:02:10]}  Nxb7 {[%clk 0:02:20]} 17. Rxa6 {[%clk 0:02:10]}  Nc5 {[%clk 0:02:20]} 18. Ra7 {[%clk 0:02:08]}  e5 {[%clk 0:02:05]} 19. Nb5 {[%clk 0:02:03]}  Nxb3 {[%clk 0:02:05]} 20. Qb4 {[%clk 0:01:47]}  Na5 {[%clk 0:01:52]} 21. Rxd6 {[%clk 0:01:45]}  Rxc4 {[%clk 0:01:44]} 22. Qd2 {[%clk 0:01:09]}  Qc8 {[%clk 0:01:44]} 23. Rxb6 {[%clk 0:01:09]}  Rc2 {[%clk 0:01:42]} 24. Qxa5 {[%clk 0:01:07]}  Rxb2 {[%clk 0:01:38]} 25. Nd6 {[%clk 0:00:47]}  Qc1+ {[%clk 0:01:17]} 26. Kg2 {[%clk 0:00:47]}  Re2 {[%clk 0:00:55]} 27. Rxf7 {[%clk 0:00:27]}  Rxf7 {[%clk 0:00:42]} 28. Rb8+ {[%clk 0:00:17]}  Bf8 {[%clk 0:00:36]} 29. Nxf7 {[%clk 0:00:17]}  Qxe3 {[%clk 0:00:19]} 30. Nh6+ {[%clk 0:00:06]}  Kg7 {[%clk 0:00:19]} 31. Ng4 {[%clk 0:00:06]}  Qe4+ {[%clk 0:00:19]} 32. Kh3 {[%clk 0:00:06]}  Qf5 {[%clk 0:00:13]} 33. Qc7+ {[%clk 0:00:04]}  Kg8 {[%clk 0:00:11]} 34. Qc4+ {[%clk 0:00:05]}  Qf7 {[%clk 0:00:10]} 35. Qxe2 {[%clk 0:00:05]}  h5 {[%clk 0:00:11]} 36. Nxe5 {[%clk 0:00:05]}  Qf6 {[%clk 0:00:08]} 37. Qa2+ {[%clk 0:00:03]}  Kg7 {[%clk 0:00:07]} 38. Qa7+ {[%clk 0:00:02]}  Kh6 {[%clk 0:00:07]} 39. Qf7 {[%clk 0:00:03]}  Qxe5 {[%clk 0:00:04]} 40. Qf4+ {[%clk 0:00:03]}  Qxf4 {[%clk 0:00:04]} 41. gxf4 {[%clk 0:00:04]}  Bd6 {[%clk 0:00:05]} 42. Rb6 {[%clk 0:00:04]}  Bxf4 {[%clk 0:00:05]} 43. f3 {[%clk 0:00:04]}  Kg5 {[%clk 0:00:05]} 44. Rc6 {[%clk 0:00:05]}  Kh6 {[%clk 0:00:05]} 45. Kg2 {[%clk 0:00:06]}  Kg5 {[%clk 0:00:06]} 46. h3 {[%clk 0:00:06]}  Kh6 {[%clk 0:00:06]} 47. Kf2 {[%clk 0:00:07]}  Kg5 {[%clk 0:00:06]} 48. Ke2 {[%clk 0:00:08]}  Kh4 {[%clk 0:00:06]} 49. Rxg6 {[%clk 0:00:08]}  Kxh3 {[%clk 0:00:05]} 50. Kd3 {[%clk 0:00:08]}  h4 {[%clk 0:00:06]} 51. Ke4 {[%clk 0:00:08]}  Bg3 {[%clk 0:00:06]} 52. f4 {[%clk 0:00:08]}  Kg2 {[%clk 0:00:05]} 53. f5 {[%clk 0:00:08]}  h3 {[%clk 0:00:06]} 54. f6 {[%clk 0:00:08]}  h2 {[%clk 0:00:07]} 55. Rh6 {[%clk 0:00:08]}  h1=Q {[%clk 0:00:07]} 56. Rxh1 {[%clk 0:00:08]}  Kxh1 {[%clk 0:00:08]} 57. f7 {[%clk 0:00:09]}  Bd6 {[%clk 0:00:07]} 58. Kd5 {[%clk 0:00:09]}  Bf8 {[%clk 0:00:07]} 59. Ke6 {[%clk 0:00:08]} 1/2-1/2


[Site "https://www.chess.com"]

[Event "Titled Tuesday Blitz June 20 Early 2023"]
[White "Ai, Evan"]
[Black "Aldokhin, Ivan"]
[WhiteFideId "2094770"]
[BlackFideId "24115720"]
[WhiteElo "1963"]
[BlackElo "2322"]
[Result "0-1"]
[Round "11"]
[TimeControl "180+2"]
[Date "2023.06.20"]
[WhiteClock "0:02:38"]
[BlackClock "0:03:07"]
[Board "84"]

1. e4 {[%clk 0:03:00]}  c5 {[%clk 0:03:00]} 2. Nf3 {[%clk 0:03:01]}  e6 {[%clk 0:03:00]} 3. d4 {[%clk 0:03:01]}  cxd4 {[%clk 0:03:01]} 4. Nxd4 {[%clk 0:03:02]}  a6 {[%clk 0:03:02]} 5. Bd3 {[%clk 0:03:02]}  Qc7 {[%clk 0:03:02]} 6. Qe2 {[%clk 0:03:00]}  Nf6 {[%clk 0:03:03]} 7. c4 {[%clk 0:02:59]}  d6 {[%clk 0:03:04]} 8. Nc3 {[%clk 0:02:59]}  Nbd7 {[%clk 0:03:04]} 9. O-O {[%clk 0:02:59]}  Be7 {[%clk 0:03:04]} 10. Be3 {[%clk 0:02:57]}  O-O {[%clk 0:03:05]} 11. f4 {[%clk 0:02:55]}  b6 {[%clk 0:03:05]} 12. b4 {[%clk 0:02:55]}  Bb7 {[%clk 0:03:06]} 13. Rac1 {[%clk 0:02:54]}  Rac8 {[%clk 0:03:06]} 14. Kh1 {[%clk 0:02:48]}  Qb8 {[%clk 0:03:06]} 15. a4 {[%clk 0:02:44]}  Qa8 {[%clk 0:03:06]} 16. Bg1 {[%clk 0:02:40]}  Rfe8 {[%clk 0:03:07]} 17. e5 {[%clk 0:02:37]}  dxe5 {[%clk 0:03:07]} 18. fxe5 {[%clk 0:02:38]}  Nxe5 {[%clk 0:03:07]} 19. Qxe5 {[%clk 0:02:38]}  Bxg2# {[%clk 0:03:07]} 0-1


[Site "https://www.chess.com"]

[Event "Titled Tuesday Blitz June 20 Early 2023"]
[White "i_like_explosions"]
[Black "Moksh Amit Doshi"]
[BlackFideId "25064967"]
[WhiteElo "2413"]
[BlackElo "2297"]
[Result "1/2-1/2"]
[Round "11"]
[TimeControl "180+2"]
[Date "2023.06.20"]
[WhiteClock "0:00:55"]
[BlackClock "0:01:15"]
[Board "85"]

1. d4 {[%clk 0:03:00]}  d5 {[%clk 0:02:55]} 2. c4 {[%clk 0:03:00]}  dxc4 {[%clk 0:02:55]} 3. e3 {[%clk 0:03:00]}  Nf6 {[%clk 0:02:54]} 4. Bxc4 {[%clk 0:03:00]}  e6 {[%clk 0:02:55]} 5. Nc3 {[%clk 0:03:00]}  c5 {[%clk 0:02:55]} 6. Nf3 {[%clk 0:03:00]}  a6 {[%clk 0:02:55]} 7. O-O {[%clk 0:02:58]}  b5 {[%clk 0:02:54]} 8. Be2 {[%clk 0:02:58]}  Bb7 {[%clk 0:02:55]} 9. dxc5 {[%clk 0:02:57]}  Qxd1 {[%clk 0:02:54]} 10. Rxd1 {[%clk 0:02:56]}  Bxc5 {[%clk 0:02:55]} 11. a3 {[%clk 0:02:57]}  Nbd7 {[%clk 0:02:48]} 12. b4 {[%clk 0:02:57]}  Ba7 {[%clk 0:02:45]} 13. Bb2 {[%clk 0:02:55]}  Rc8 {[%clk 0:02:45]} 14. Rac1 {[%clk 0:02:54]}  Ke7 {[%clk 0:02:44]} 15. Kf1 {[%clk 0:02:49]}  Nb6 {[%clk 0:02:42]} 16. Ke1 {[%clk 0:02:48]}  Nc4 {[%clk 0:02:42]} 17. Bxc4 {[%clk 0:02:47]}  Rxc4 {[%clk 0:02:43]} 18. Ke2 {[%clk 0:02:43]}  Rhc8 {[%clk 0:02:41]} 19. g3 {[%clk 0:02:43]}  Ng4 {[%clk 0:02:19]} 20. h3 {[%clk 0:02:33]}  Bxf3+ {[%clk 0:02:09]} 21. Kxf3 {[%clk 0:02:33]}  Ne5+ {[%clk 0:02:10]} 22. Ke2 {[%clk 0:02:33]}  R4c6 {[%clk 0:02:07]} 23. Ne4 {[%clk 0:02:08]}  Rc2+ {[%clk 0:02:02]} 24. Rxc2 {[%clk 0:02:05]}  Rxc2+ {[%clk 0:02:03]} 25. Rd2 {[%clk 0:02:06]}  Rxd2+ {[%clk 0:02:03]} 26. Kxd2 {[%clk 0:02:06]}  Nc4+ {[%clk 0:02:02]} 27. Kc3 {[%clk 0:02:06]}  Bb8 {[%clk 0:01:57]} 28. Bc1 {[%clk 0:02:05]}  Be5+ {[%clk 0:01:56]} 29. Kd3 {[%clk 0:02:04]}  Bd6 {[%clk 0:01:41]} 30. f4 {[%clk 0:01:57]}  f5 {[%clk 0:01:40]} 31. Ng5 {[%clk 0:01:57]}  h6 {[%clk 0:01:36]} 32. Nf3 {[%clk 0:01:57]}  Bc7 {[%clk 0:01:31]} 33. e4 {[%clk 0:01:54]}  Bb6 {[%clk 0:01:28]} 34. g4 {[%clk 0:01:48]}  fxg4 {[%clk 0:01:22]} 35. hxg4 {[%clk 0:01:47]}  g6 {[%clk 0:01:22]} 36. Nh4 {[%clk 0:01:41]}  Kf6 {[%clk 0:01:20]} 37. e5+ {[%clk 0:01:34]}  Kf7 {[%clk 0:01:20]} 38. a4 {[%clk 0:01:33]}  g5 {[%clk 0:01:16]} 39. Nf3 {[%clk 0:01:21]}  gxf4 {[%clk 0:01:16]} 40. axb5 {[%clk 0:01:21]}  axb5 {[%clk 0:01:17]} 41. Bxf4 {[%clk 0:01:21]}  Kg6 {[%clk 0:01:13]} 42. Nd4 {[%clk 0:01:19]}  Bxd4 {[%clk 0:00:58]} 43. Kxd4 {[%clk 0:01:20]}  h5 {[%clk 0:00:58]} 44. gxh5+ {[%clk 0:01:19]}  Kxh5 {[%clk 0:00:59]} 45. Kc5 {[%clk 0:01:18]}  Kg4 {[%clk 0:00:59]} 46. Kxb5 {[%clk 0:00:44]}  Na3+ {[%clk 0:00:56]} 47. Ka4 {[%clk 0:00:45]}  Kxf4 {[%clk 0:00:57]} 48. Kxa3 {[%clk 0:00:45]}  Kxe5 {[%clk 0:00:58]} 49. Kb3 {[%clk 0:00:46]}  Kd4 {[%clk 0:00:57]} 50. Kc2 {[%clk 0:00:46]}  Kc4 {[%clk 0:00:57]} 51. Kd2 {[%clk 0:00:46]}  Kxb4 {[%clk 0:00:57]} 52. Ke3 {[%clk 0:00:46]}  Kc5 {[%clk 0:00:57]} 53. Ke4 {[%clk 0:00:47]}  Kd6 {[%clk 0:00:58]} 54. Kd4 {[%clk 0:00:48]}  Kd7 {[%clk 0:00:58]} 55. Ke5 {[%clk 0:00:48]}  Ke7 {[%clk 0:00:59]} 56. Ke4 {[%clk 0:00:46]}  Kf6 {[%clk 0:00:59]} 57. Kf4 {[%clk 0:00:47]}  e5+ {[%clk 0:01:00]} 58. Ke4 {[%clk 0:00:47]}  Ke6 {[%clk 0:01:01]} 59. Ke3 {[%clk 0:00:48]}  Kf5 {[%clk 0:01:01]} 60. Kf3 {[%clk 0:00:48]}  e4+ {[%clk 0:01:02]} 61. Ke3 {[%clk 0:00:49]}  Ke5 {[%clk 0:01:03]} 62. Ke2 {[%clk 0:00:49]}  Kf4 {[%clk 0:01:04]} 63. Kf2 {[%clk 0:00:49]}  Kg4 {[%clk 0:01:04]} 64. Ke3 {[%clk 0:00:50]}  Kf5 {[%clk 0:01:05]} 65. Ke2 {[%clk 0:00:50]}  Ke5 {[%clk 0:01:06]} 66. Ke3 {[%clk 0:00:51]}  Kd5 {[%clk 0:01:07]} 67. Ke2 {[%clk 0:00:51]}  Kc4 {[%clk 0:01:07]} 68. Ke3 {[%clk 0:00:52]}  Kd5 {[%clk 0:01:08]} 69. Ke2 {[%clk 0:00:52]}  Kd4 {[%clk 0:01:09]} 70. Kd2 {[%clk 0:00:53]}  e3+ {[%clk 0:01:09]} 71. Ke2 {[%clk 0:00:53]}  Ke4 {[%clk 0:01:10]} 72. Ke1 {[%clk 0:00:54]}  Kd3 {[%clk 0:01:11]} 73. Kd1 {[%clk 0:00:54]}  Kd4 {[%clk 0:01:12]} 74. Ke2 {[%clk 0:00:54]}  Ke4 {[%clk 0:01:13]} 75. Ke1 {[%clk 0:00:55]}  Kf3 {[%clk 0:01:14]} 76. Kf1 {[%clk 0:00:55]}  e2+ {[%clk 0:01:14]} 77. Ke1 {[%clk 0:00:55]}  Ke3 {[%clk 0:01:15]} 1/2-1/2


[Site "https://www.chess.com"]

[Event "Titled Tuesday Blitz June 20 Early 2023"]
[White "Belov, Alexei"]
[Black "Topalov, Aleksandar"]
[WhiteFideId "4128206"]
[BlackFideId "925659"]
[WhiteElo "2557"]
[BlackElo "2151"]
[Result "1-0"]
[Round "11"]
[TimeControl "180+2"]
[Date "2023.06.20"]
[WhiteClock "0:00:29"]
[BlackClock "0:00:26"]
[Board "86"]

1. e4 {[%clk 0:03:00]}  e6 {[%clk 0:02:59]} 2. d4 {[%clk 0:02:59]}  d5 {[%clk 0:03:00]} 3. Nd2 {[%clk 0:03:00]}  Nf6 {[%clk 0:02:59]} 4. e5 {[%clk 0:02:59]}  Ng8 {[%clk 0:02:59]} 5. Bd3 {[%clk 0:02:59]}  Ne7 {[%clk 0:03:00]} 6. Ne2 {[%clk 0:02:58]}  Qd7 {[%clk 0:03:00]} 7. O-O {[%clk 0:02:57]}  b6 {[%clk 0:03:00]} 8. c3 {[%clk 0:02:56]}  Ba6 {[%clk 0:02:58]} 9. Bxa6 {[%clk 0:02:56]}  Nxa6 {[%clk 0:02:58]} 10. Nf3 {[%clk 0:02:48]}  c5 {[%clk 0:02:54]} 11. a4 {[%clk 0:02:48]}  Nb8 {[%clk 0:02:53]} 12. a5 {[%clk 0:02:46]}  bxa5 {[%clk 0:02:39]} 13. dxc5 {[%clk 0:02:38]}  Nbc6 {[%clk 0:02:35]} 14. Ned4 {[%clk 0:02:34]}  Rb8 {[%clk 0:02:26]} 15. Qd3 {[%clk 0:02:22]}  Ng6 {[%clk 0:02:24]} 16. Nxc6 {[%clk 0:02:19]}  Qxc6 {[%clk 0:02:24]} 17. Rxa5 {[%clk 0:02:19]}  Bxc5 {[%clk 0:02:22]} 18. h4 {[%clk 0:02:00]}  h6 {[%clk 0:02:09]} 19. h5 {[%clk 0:01:59]}  Ne7 {[%clk 0:02:09]} 20. Ra6 {[%clk 0:01:48]}  Qc7 {[%clk 0:01:59]} 21. g4 {[%clk 0:01:38]}  O-O {[%clk 0:01:53]} 22. Kg2 {[%clk 0:01:21]}  Rb6 {[%clk 0:01:40]} 23. Rxb6 {[%clk 0:01:21]}  Bxb6 {[%clk 0:01:40]} 24. Rh1 {[%clk 0:01:09]}  Nc6 {[%clk 0:01:36]} 25. Qe2 {[%clk 0:00:56]}  f6 {[%clk 0:01:35]} 26. exf6 {[%clk 0:00:53]}  Rxf6 {[%clk 0:01:35]} 27. g5 {[%clk 0:00:54]}  hxg5 {[%clk 0:01:35]} 28. Bxg5 {[%clk 0:00:53]}  Rxf3 {[%clk 0:01:06]} 29. Qxf3 {[%clk 0:00:47]}  Qe5 {[%clk 0:01:06]} 30. Qf4 {[%clk 0:00:43]}  Qe2 {[%clk 0:01:03]} 31. h6 {[%clk 0:00:38]}  Bc5 {[%clk 0:00:26]} 32. hxg7 {[%clk 0:00:29]} 1-0


[Site "https://www.chess.com"]

[Event "Titled Tuesday Blitz June 20 Early 2023"]
[White "Brueckner, Thomas"]
[Black "Gubajdullin, Alexei"]
[WhiteFideId "4600452"]
[BlackFideId "4141202"]
[WhiteElo "2319"]
[BlackElo "2279"]
[Result "0-1"]
[Round "11"]
[TimeControl "180+2"]
[Date "2023.06.20"]
[WhiteClock "0:00:30"]
[BlackClock "0:01:55"]
[Board "95"]

1. d4 {[%clk 0:03:00]}  Nf6 {[%clk 0:02:58]} 2. c4 {[%clk 0:03:00]}  g6 {[%clk 0:02:58]} 3. Nc3 {[%clk 0:03:01]}  Bg7 {[%clk 0:02:58]} 4. e4 {[%clk 0:03:01]}  d6 {[%clk 0:02:57]} 5. Be2 {[%clk 0:03:01]}  O-O {[%clk 0:02:56]} 6. Nf3 {[%clk 0:03:01]}  Na6 {[%clk 0:02:54]} 7. O-O {[%clk 0:02:59]}  e5 {[%clk 0:02:54]} 8. Be3 {[%clk 0:02:50]}  c6 {[%clk 0:02:53]} 9. Qc2 {[%clk 0:02:47]}  Ng4 {[%clk 0:02:50]} 10. Bg5 {[%clk 0:02:46]}  f6 {[%clk 0:02:49]} 11. Bd2 {[%clk 0:02:42]}  exd4 {[%clk 0:02:47]} 12. Nxd4 {[%clk 0:02:41]}  f5 {[%clk 0:02:47]} 13. exf5 {[%clk 0:02:32]}  Bxd4 {[%clk 0:02:44]} 14. Bxg4 {[%clk 0:02:31]}  Qh4 {[%clk 0:02:39]} 15. Qe4 {[%clk 0:02:08]}  Bxc3 {[%clk 0:02:19]} 16. Bxc3 {[%clk 0:01:59]}  gxf5 {[%clk 0:02:18]} 17. Bxf5 {[%clk 0:01:52]}  Qxe4 {[%clk 0:02:17]} 18. Bxe4 {[%clk 0:01:52]}  Nc5 {[%clk 0:02:17]} 19. Bc2 {[%clk 0:01:49]}  Bf5 {[%clk 0:02:17]} 20. Bxf5 {[%clk 0:01:46]}  Rxf5 {[%clk 0:02:17]} 21. Rae1 {[%clk 0:01:43]}  Kf7 {[%clk 0:02:14]} 22. b3 {[%clk 0:01:37]}  Re8 {[%clk 0:02:12]} 23. Rxe8 {[%clk 0:01:36]}  Kxe8 {[%clk 0:02:13]} 24. Re1+ {[%clk 0:01:36]}  Kd7 {[%clk 0:02:12]} 25. Re3 {[%clk 0:01:35]}  d5 {[%clk 0:02:11]} 26. g4 {[%clk 0:01:28]}  Rf4 {[%clk 0:02:09]} 27. cxd5 {[%clk 0:01:22]}  Rxg4+ {[%clk 0:02:09]} 28. Rg3 {[%clk 0:01:22]}  Rxg3+ {[%clk 0:02:09]} 29. fxg3 {[%clk 0:01:22]}  cxd5 {[%clk 0:02:09]} 30. Bd4 {[%clk 0:01:22]}  b6 {[%clk 0:02:06]} 31. Kf2 {[%clk 0:01:17]}  Nd3+ {[%clk 0:02:01]} 32. Ke3 {[%clk 0:01:14]}  Nc1 {[%clk 0:02:01]} 33. g4 {[%clk 0:01:00]}  Nxa2 {[%clk 0:01:59]} 34. h4 {[%clk 0:00:55]}  Ke6 {[%clk 0:01:58]} 35. Kf4 {[%clk 0:00:52]}  Nc1 {[%clk 0:01:58]} 36. b4 {[%clk 0:00:49]}  Ne2+ {[%clk 0:01:57]} 37. Ke3 {[%clk 0:00:49]}  Nxd4 {[%clk 0:01:57]} 38. Kxd4 {[%clk 0:00:49]}  a5 {[%clk 0:01:58]} 39. bxa5 {[%clk 0:00:48]}  bxa5 {[%clk 0:01:58]} 40. h5 {[%clk 0:00:48]}  a4 {[%clk 0:01:56]} 41. g5 {[%clk 0:00:47]}  Kf5 {[%clk 0:01:55]} 42. g6 {[%clk 0:00:46]}  hxg6 {[%clk 0:01:55]} 43. h6 {[%clk 0:00:30]}  Kf6 {[%clk 0:01:55]} 0-1


[Site "https://www.chess.com"]

[Event "Titled Tuesday Blitz June 20 Early 2023"]
[White "Gontcharov, Vladislav"]
[Black "KorolDimitriy75"]
[WhiteFideId "4123492"]
[WhiteElo "2420"]
[BlackElo "2414"]
[Result "0-1"]
[Round "11"]
[TimeControl "180+2"]
[Date "2023.06.20"]
[WhiteClock "0:00:00"]
[BlackClock "0:00:02"]
[Board "96"]

1. d4 {[%clk 0:03:00]}  Nf6 {[%clk 0:02:56]} 2. c4 {[%clk 0:03:00]}  c5 {[%clk 0:02:56]} 3. Nf3 {[%clk 0:02:59]}  cxd4 {[%clk 0:02:56]} 4. Nxd4 {[%clk 0:02:58]}  g6 {[%clk 0:02:56]} 5. Nc3 {[%clk 0:02:57]}  Bg7 {[%clk 0:02:56]} 6. g3 {[%clk 0:02:57]}  O-O {[%clk 0:02:56]} 7. Bg2 {[%clk 0:02:57]}  Nc6 {[%clk 0:02:56]} 8. O-O {[%clk 0:02:56]}  d6 {[%clk 0:02:56]} 9. Nc2 {[%clk 0:02:42]}  Qa5 {[%clk 0:02:55]} 10. Ne3 {[%clk 0:02:34]}  Qh5 {[%clk 0:02:53]} 11. Ncd5 {[%clk 0:02:32]}  Nxd5 {[%clk 0:02:26]} 12. cxd5 {[%clk 0:02:21]}  Ne5 {[%clk 0:02:16]} 13. f3 {[%clk 0:02:14]}  Bh3 {[%clk 0:01:51]} 14. Qb3 {[%clk 0:01:51]}  Bxg2 {[%clk 0:01:37]} 15. Kxg2 {[%clk 0:01:50]}  b6 {[%clk 0:01:21]} 16. Qa4 {[%clk 0:01:43]}  f5 {[%clk 0:00:59]} 17. Bd2 {[%clk 0:01:28]}  g5 {[%clk 0:00:41]} 18. h3 {[%clk 0:00:58]}  f4 {[%clk 0:00:31]} 19. Ng4 {[%clk 0:00:57]}  fxg3 {[%clk 0:00:17]} 20. Nxe5 {[%clk 0:00:43]}  Bxe5 {[%clk 0:00:16]} 21. Rac1 {[%clk 0:00:43]}  h6 {[%clk 0:00:09]} 22. Qd7 {[%clk 0:00:41]}  Rf7 {[%clk 0:00:08]} 23. Rc7 {[%clk 0:00:39]}  a5 {[%clk 0:00:07]} 24. Qe6 {[%clk 0:00:36]}  Re8 {[%clk 0:00:05]} 25. b3 {[%clk 0:00:31]}  Kg7 {[%clk 0:00:05]} 26. Rfc1 {[%clk 0:00:28]}  Qg6 {[%clk 0:00:05]} 27. Qxg6+ {[%clk 0:00:23]}  Kxg6 {[%clk 0:00:06]} 28. Rb7 {[%clk 0:00:19]}  Bd4 {[%clk 0:00:05]} 29. a3 {[%clk 0:00:14]}  Rf5 {[%clk 0:00:05]} 30. e4 {[%clk 0:00:14]}  Rf7 {[%clk 0:00:04]} 31. Rc4 {[%clk 0:00:06]}  Bf2 {[%clk 0:00:02]} 32. Rc3 {[%clk 0:00:03]}  Ref8 {[%clk 0:00:01]} 33. b4 {[%clk 0:00:02]}  axb4 {[%clk 0:00:01]} 34. axb4 {[%clk 0:00:00]}  h5 {[%clk 0:00:02]} 0-1


[Site "https://www.chess.com"]

[Event "Titled Tuesday Blitz June 20 Early 2023"]
[White "Kochiev, Ivan"]
[Black "Carrasco Miranda, Andres"]
[WhiteFideId "2917890"]
[BlackFideId "3405990"]
[WhiteElo "2287"]
[BlackElo "2183"]
[Result "1/2-1/2"]
[Round "11"]
[TimeControl "180+2"]
[Date "2023.06.20"]
[WhiteClock "0:02:43"]
[BlackClock "0:02:46"]
[Board "98"]

1. e4 {[%clk 0:03:00]}  e5 {[%clk 0:02:56]} 2. Nf3 {[%clk 0:02:58]}  Nc6 {[%clk 0:02:55]} 3. d4 {[%clk 0:02:56]}  exd4 {[%clk 0:02:55]} 4. Bc4 {[%clk 0:02:56]}  Bc5 {[%clk 0:02:51]} 5. c3 {[%clk 0:02:55]}  Nf6 {[%clk 0:02:51]} 6. cxd4 {[%clk 0:02:46]}  Bb4+ {[%clk 0:02:50]} 7. Bd2 {[%clk 0:02:46]}  Bxd2+ {[%clk 0:02:49]} 8. Nbxd2 {[%clk 0:02:47]}  d5 {[%clk 0:02:49]} 9. exd5 {[%clk 0:02:47]}  Nxd5 {[%clk 0:02:50]} 10. O-O {[%clk 0:02:47]}  O-O {[%clk 0:02:46]} 11. Re1 {[%clk 0:02:43]} 1/2-1/2


[Site "https://www.chess.com"]